Body,Body Name,Date,TransNo,Amount � (Excl VAT),Supplier name,Description,Expense Area,Expense Type,Expense Code,
http://opendatacommunities.org/id/london-borough-council/sutton,London Borough of Sutton,22/05/2022,10008360,8.32, TWINKL,TWINKL SUBSCRIPTION,Health and Wellbeing,Equipment And Materials Purchase,A40000,
http://opendatacommunities.org/id/london-borough-council/sutton,London Borough of Sutton,25/05/2022,10008360,2.27, AMAZON.CO.UK 2G9B72C04,TOYS AND EQUIPMENT,Health and Wellbeing,Equipment And Materials Purchase,A40000,
http://opendatacommunities.org/id/london-borough-council/sutton,London Borough of Sutton,28/04/2022,10008360,14.42, AMZNMKTPLACE,TOYS AND EQUIPMENT,Health and Wellbeing,Equipment And Materials Purchase,A40000,
http://opendatacommunities.org/id/london-borough-council/sutton,London Borough of Sutton,27/04/2022,10008360,7.33, AMZNMKTPLACE,TOYS AND EQUIPMENT,Health and Wellbeing,Equipment And Materials Purchase,A40000,
http://opendatacommunities.org/id/london-borough-council/sutton,London Borough of Sutton,13/05/2022,10008360,23.23, BAKER ROSS,TOYS AND EQUIPMENT,Health and Wellbeing,Equipment And Materials Purchase,A40000,
http://opendatacommunities.org/id/london-borough-council/sutton,London Borough of Sutton,16/05/2022,10008360,3.72, THE RANGE,TOYS AND EQUIPMENT,Health and Wellbeing,Equipment And Materials Purchase,A40000,
http://opendatacommunities.org/id/london-borough-council/sutton,London Borough of Sutton,16/05/2022,10008360,89.35, TESCO STORES 5999,GROCERIES,Health and Wellbeing,Provisions,A41006,
http://opendatacommunities.org/id/london-borough-council/sutton,London Borough of Sutton,10/05/2022,10008360,26.08, ASDA SUPERSTORE,GROCERIES,Health and Wellbeing,Provisions,A41006,
http://opendatacommunities.org/id/london-borough-council/sutton,London Borough of Sutton,04/05/2022,10008360,10.31, AMAZON.CO.UK 2D1TO0T84,TOYS AND EQUIPMENT,Health and Wellbeing,Provisions,A41006,
http://opendatacommunities.org/id/london-borough-council/sutton,London Borough of Sutton,03/05/2022,10008360,81.45, TESCO STORES 5999,GROCERIES,Health and Wellbeing,Provisions,A41006,
http://opendatacommunities.org/id/london-borough-council/sutton,London Borough of Sutton,20/05/2022,10008360,17.20, ASDA SUPERSTORE,GROCERIES,Health and Wellbeing,Provisions,A41006,
http://opendatacommunities.org/id/london-borough-council/sutton,London Borough of Sutton,19/05/2022,10008360,6.00, TESCO STORE 3235,GROCERIES,Health and Wellbeing,Provisions,A41006,
http://opendatacommunities.org/id/london-borough-council/sutton,London Borough of Sutton,19/05/2022,10008360,2.50, ASDA SUPERSTORE,GROCERIES,Health and Wellbeing,Provisions,A41006,
http://opendatacommunities.org/id/london-borough-council/sutton,London Borough of Sutton,26/04/2022,10008360,23.88, ASDA STORES,GROCERIES,Health and Wellbeing,Provisions,A41006,
http://opendatacommunities.org/id/london-borough-council/sutton,London Borough of Sutton,23/05/2022,10008360,32.91, SAINSBURYS S/MKTS,GROCERIES,Health and Wellbeing,Provisions,A41006,
http://opendatacommunities.org/id/london-borough-council/sutton,London Borough of Sutton,10/05/2022,10008360,124.00, GIFTS 2 IMPRESS LTD T/,PLATINUM JUBILEE COINS FOR BEACON LIGHTING (50),Health and Wellbeing,Arts Programme,A44286,
http://opendatacommunities.org/id/london-borough-council/sutton,London Borough of Sutton,27/04/2022,10008360,110.25, GIFTS 2 IMPRESS LTD T/,COINS FOR QUEENS PLATINUM JUBILEE BEACON EVENT,Health and Wellbeing,Equipment And Materials Purchase,A40000,
http://opendatacommunities.org/id/london-borough-council/sutton,London Borough of Sutton,19/05/2022,10008360,13.97, EB  CREATING FAMILY FR,REFUND FOR CS EVENT,Health and Wellbeing,Inquiry Expenses,A44285,
http://opendatacommunities.org/id/london-borough-council/sutton,London Borough of Sutton,09/05/2022,10008360,240.63, APPLIANCEDIRECT CO,COOKER HOOD AND ATTACHMENTS FOR WHITEHALL HERITAGE HOUSE (NHLF),Health and Wellbeing,Other Supplies & Services,A44291,
http://opendatacommunities.org/id/london-borough-council/sutton,London Borough of Sutton,09/05/2022,10008360,79.99, AMZNMKTPLACE AMAZON.CO,"WIRELESS, NOISE CANCELLING HEADPHONES FOR A MEMBER OF STAFF",Health and Wellbeing,Other Supplies & Services,A44291,
http://opendatacommunities.org/id/london-borough-council/sutton,London Borough of Sutton,20/04/2022,10008360,-10.00, CARSHALTON CARNIVAL,STALL FOR ST HELIER FESTIVAL,Health and Wellbeing,Other Supplies & Services,A44291,
http://opendatacommunities.org/id/london-borough-council/sutton,London Borough of Sutton,20/04/2022,10008360,-10.00, CARSHALTON CARNIVAL,STALL FOR ST HELIER FESTIVAL,Health and Wellbeing,Other Supplies & Services,A44291,
http://opendatacommunities.org/id/london-borough-council/sutton,London Borough of Sutton,10/05/2022,10008360,150.00, FACEBK 287H8EFAL2,covid adverst,Health and Wellbeing,Provider Contract Payments,A44290,
http://opendatacommunities.org/id/london-borough-council/sutton,London Borough of Sutton,23/05/2022,10008360,149.01, FACEBK QNW5RE7AL2,covid adverst,Health and Wellbeing,Provider Contract Payments,A44290,
http://opendatacommunities.org/id/london-borough-council/sutton,London Borough of Sutton,12/05/2022,10008360,40.00, WWW.ICO.ORG.UK,MUSIC FOR WEDDINGS,Health and Wellbeing,Subscriptions,A47010,
http://opendatacommunities.org/id/london-borough-council/sutton,London Borough of Sutton,03/05/2022,10008360,8.32, SPOTIFY P1B409A4E4,ICO REGISTRATION,Health and Wellbeing,Subscriptions,A47010,
http://opendatacommunities.org/id/london-borough-council/sutton,London Borough of Sutton,27/04/2022,10008360,5.00, TESCO STORE 3235,TISSUES FOR OFFICE,Health and Wellbeing,Miscellaneous Expenses,A49000,
http://opendatacommunities.org/id/london-borough-council/sutton,London Borough of Sutton,19/05/2022,10008360,"1,440.00", HOTEL AT BOOKING.COM,ACCOMMODATION BOOKING FOR THE LGA CONFERENCE,Resources,Conference Expenses,A43075,
http://opendatacommunities.org/id/london-borough-council/sutton,London Borough of Sutton,17/05/2022,10008360,35.00, FIRST FLOWERS DIRECT L,FLOWERS FOR FORMER CLLR FOLLOWING INJURY,Resources,Hospitality,A46020,
http://opendatacommunities.org/id/london-borough-council/sutton,London Borough of Sutton,22/05/2022,10008360,240.00, DOCUSIGN INC. GBP,DOCUSIGN ANNUAL PAYMENT,Peoples Services,Subscriptions,A47010,
http://opendatacommunities.org/id/london-borough-council/sutton,London Borough of Sutton,28/04/2022,10008360,-48.00, PRIMARK,FRAUDULENT TRANSACTIONS - REPORTED TO LLOYDS,Peoples Services,Miscellaneous Expenses,A49000,
http://opendatacommunities.org/id/london-borough-council/sutton,London Borough of Sutton,28/04/2022,10008360,48.00, PRIMARK,FRAUDULENT TRANSACTIONS - REPORTED TO LLOYDS,Peoples Services,Miscellaneous Expenses,A49000,
http://opendatacommunities.org/id/london-borough-council/sutton,London Borough of Sutton,28/04/2022,10008360,26.00, PRIMARK,FRAUDULENT TRANSACTIONS - REPORTED TO LLOYDS,Peoples Services,Miscellaneous Expenses,A49000,
http://opendatacommunities.org/id/london-borough-council/sutton,London Borough of Sutton,28/04/2022,10008360,9.99, FRAUDULENT TRASNASC TIONS REFUNDED BY LLOYDS,FRAUDULENT TRANSACTIONS - REPORTED TO LLOYDS,Peoples Services,Miscellaneous Expenses,A49000,
http://opendatacommunities.org/id/london-borough-council/sutton,London Borough of Sutton,28/04/2022,10008360,-26.00, PRIMARK,FRAUDULENT TRANSACTIONS - REPORTED TO LLOYDS,Peoples Services,Miscellaneous Expenses,A49000,
http://opendatacommunities.org/id/london-borough-council/sutton,London Borough of Sutton,28/04/2022,10008360,-9.99, FRAUDULENT TRASNASC TIONS REFUNDED BY LLOYDS,FRAUDULENT TRANSACTIONS - REPORTED TO LLOYDS,Peoples Services,Miscellaneous Expenses,A49000,
http://opendatacommunities.org/id/london-borough-council/sutton,London Borough of Sutton,20/05/2022,10008360,0.16, PORTANT.CO,MAY INVOICE $7.00 - PORTANT PTY LTD #2270-1512,Peoples Services,ICT Support - Other Recovery,R20050,
http://opendatacommunities.org/id/london-borough-council/sutton,London Borough of Sutton,19/05/2022,10008360,5.66, PORTANT.CO,MAY INVOICE $7.00 - PORTANT PTY LTD #2270-1512,Resources,ICT Support - Other Recovery,R20050,
http://opendatacommunities.org/id/london-borough-council/sutton,London Borough of Sutton,27/04/2022,10008360,70.00, SITEGROUND HOSTING,REQUIRED FOR THE TEAM,Peoples Services,Publicity,A44266,
http://opendatacommunities.org/id/london-borough-council/sutton,London Borough of Sutton,04/05/2022,10008360,5.98, ROBERT DYAS HOLDNG LTD,POSTER STRIPS (FOR NAMES PLATES OUTSIDE THE MAYOR'S PARLOUR),Resources,Equipment And Materials Purchase,A40000,
http://opendatacommunities.org/id/london-borough-council/sutton,London Borough of Sutton,27/04/2022,10008360,90.05, SWAN LAKE DECOR LTD,FRAMING OF END OF TERM COUNCILLOR PHOTOS,Resources,Equipment And Materials Purchase,A40000,
http://opendatacommunities.org/id/london-borough-council/sutton,London Borough of Sutton,09/05/2022,10008360,983.64, MAJESTIC WINE,WINE DELIVERY FOR ANNUAL MAYOR MAKING,Resources,Hospitality,A46020,
http://opendatacommunities.org/id/london-borough-council/sutton,London Borough of Sutton,04/05/2022,10008360,0.29, FOREIGN EXCHAGE,foreign exchange fee,Resources,Publicity,A44266,
http://opendatacommunities.org/id/london-borough-council/sutton,London Borough of Sutton,03/05/2022,10008360,10.39, OTTER.AI,Otter.ai subscription,Resources,Publicity,A44266,
http://opendatacommunities.org/id/london-borough-council/sutton,London Borough of Sutton,29/04/2022,10008360,218.03, WWW.INSTANTPRINT.C,ROLLER BANNER FOR LOCAL ELECTIONS,Resources,Publicity,A44266,
http://opendatacommunities.org/id/london-borough-council/sutton,London Borough of Sutton,29/04/2022,10008360,446.35, WWW.INSTANTPRINT.C,ROLLER BANNERS FOR LOCAL ELECTIONS,Resources,Publicity,A44266,
http://opendatacommunities.org/id/london-borough-council/sutton,London Borough of Sutton,13/05/2022,10008360,0.43, FOREIGN EXCHAGE,FOREIGN EXCHAGE,Resources,Publicity,A44266,
http://opendatacommunities.org/id/london-borough-council/sutton,London Borough of Sutton,12/05/2022,10008360,15.48, CLIPCHAMP.COM,clipchamp subscription,Resources,Publicity,A44266,
http://opendatacommunities.org/id/london-borough-council/sutton,London Borough of Sutton,20/05/2022,10008360,298.95, ARGOS LTD,CL&G,Resources,"Grants, Contributions & Donations",A47005,
http://opendatacommunities.org/id/london-borough-council/sutton,London Borough of Sutton,20/05/2022,10008360,20.00, OYSTER BUS AUTOLOAD,CL&G,Resources,"Grants, Contributions & Donations",A47005,
http://opendatacommunities.org/id/london-borough-council/sutton,London Borough of Sutton,19/05/2022,10008360,"1,025.00", ARGOS LTD,CL&G,Resources,"Grants, Contributions & Donations",A47005,
http://opendatacommunities.org/id/london-borough-council/sutton,London Borough of Sutton,19/05/2022,10008360,268.95, ARGOS LTD,CL&G,Resources,"Grants, Contributions & Donations",A47005,
http://opendatacommunities.org/id/london-borough-council/sutton,London Borough of Sutton,19/05/2022,10008360,250.00, ARGOS LTD,CL&G,Resources,"Grants, Contributions & Donations",A47005,
http://opendatacommunities.org/id/london-borough-council/sutton,London Borough of Sutton,18/05/2022,10008360,268.95, ARGOS LTD,CL&G,Resources,"Grants, Contributions & Donations",A47005,
http://opendatacommunities.org/id/london-borough-council/sutton,London Borough of Sutton,17/05/2022,10008360,509.00, ELECTROMARKET,CL&G,Resources,"Grants, Contributions & Donations",A47005,
http://opendatacommunities.org/id/london-borough-council/sutton,London Borough of Sutton,12/05/2022,10008360,465.00, ARGOS LTD,CL&G,Resources,"Grants, Contributions & Donations",A47005,
http://opendatacommunities.org/id/london-borough-council/sutton,London Borough of Sutton,10/05/2022,10008360,227.95, ARGOS LTD,CL&G,Resources,"Grants, Contributions & Donations",A47005,
http://opendatacommunities.org/id/london-borough-council/sutton,London Borough of Sutton,05/05/2022,10008360,333.95, ARGOS LTD,CL&G,Resources,"Grants, Contributions & Donations",A47005,
http://opendatacommunities.org/id/london-borough-council/sutton,London Borough of Sutton,03/05/2022,10008360,268.95, ARGOS LTD,CL&G,Resources,"Grants, Contributions & Donations",A47005,
http://opendatacommunities.org/id/london-borough-council/sutton,London Borough of Sutton,03/05/2022,10008360,268.95, ARGOS LTD,CL&G,Resources,"Grants, Contributions & Donations",A47005,
http://opendatacommunities.org/id/london-borough-council/sutton,London Borough of Sutton,03/05/2022,10008360,465.00, ARGOS LTD,CL&G,Resources,"Grants, Contributions & Donations",A47005,
http://opendatacommunities.org/id/london-borough-council/sutton,London Borough of Sutton,30/04/2022,10008360,"9,980.00", CS MORRISONS GIFT CARD,CL&G,Resources,"Grants, Contributions & Donations",A47005,
http://opendatacommunities.org/id/london-borough-council/sutton,London Borough of Sutton,29/04/2022,10008360,20.00, OYSTER BUS AUTOLOAD,CL&G,Resources,"Grants, Contributions & Donations",A47005,
http://opendatacommunities.org/id/london-borough-council/sutton,London Borough of Sutton,29/04/2022,10008360,236.95, ARGOS LTD,CL&G,Resources,"Grants, Contributions & Donations",A47005,
http://opendatacommunities.org/id/london-borough-council/sutton,London Borough of Sutton,25/04/2022,10008360,452.95, ARGOS LTD,CL&G,Resources,"Grants, Contributions & Donations",A47005,
http://opendatacommunities.org/id/london-borough-council/sutton,London Borough of Sutton,24/05/2022,10008360,54.15, AMZNMKTPLACE,ITEMS FOR THE LONDON CANCER HUB INNOVATION GATEWAY TO BE RECHARGED TO E46420.,Resources,Contingency,A49001,
http://opendatacommunities.org/id/london-borough-council/sutton,London Borough of Sutton,18/05/2022,10008360,127.17, AMZNMKTPLACE,VARIOUS ITEMS FOR THE INNOVATION GATEWAY - THIS NEEDS TO BE MOVED TO COST CENTRE E46420,Resources,Contingency,A49001,
http://opendatacommunities.org/id/london-borough-council/sutton,London Borough of Sutton,08/05/2022,10008360,27.14, AMZNMKTPLACE,MEETING ROOM CABLE TIDY,Resources,Contingency,A49001,
http://opendatacommunities.org/id/london-borough-council/sutton,London Borough of Sutton,05/05/2022,10008360,149.95, AMZNMKTPLACE,NEW CIGARETTE DISPOSAL BOXES FOR OUTSIDE CIVIC ,Resources,Contingency,A49001,
http://opendatacommunities.org/id/london-borough-council/sutton,London Borough of Sutton,29/04/2022,10008360,216.66, I LOVE PARCELS,MAILBOX FOR THE LONDON CANCER HUB INNOVATION GATEWAY,Resources,Contingency,A49001,
http://opendatacommunities.org/id/london-borough-council/sutton,London Borough of Sutton,28/04/2022,10008360,11.32, AMZNMKTPLACE AMAZON.CO,AERIAL REQUIRED FOR TV TO USE FOR ELECTIONS AT WESTCROFT ,Resources,Contingency,A49001,
http://opendatacommunities.org/id/london-borough-council/sutton,London Borough of Sutton,25/04/2022,10008360,16.65, AMZNMKTPLACE AMAZON.CO,CABLE TIDY FOR MEETING ROOMS AT CIVIC.,Resources,Contingency,A49001,
http://opendatacommunities.org/id/london-borough-council/sutton,London Borough of Sutton,10/05/2022,10008360,50.00, FACEBK 287H8EFAL2,DGR,Development Growth and Regeneration,Publicity,A44266,
http://opendatacommunities.org/id/london-borough-council/sutton,London Borough of Sutton,21/05/2022,10008360,223.27, MAILCHIMP,Monthly Mailchimp Subscription SHP,Development Growth and Regeneration,Publicity,A44266,
http://opendatacommunities.org/id/london-borough-council/sutton,London Borough of Sutton,14/05/2022,10008360,351.47, MAILCHIMP,Monthly Subscription LBS,Development Growth and Regeneration,Publicity,A44266,
http://opendatacommunities.org/id/london-borough-council/sutton,London Borough of Sutton,06/05/2022,10008360,226.00, MALMAISON,HOTEL BOOKINGS FOR ATTENDING REIIF EVENT,Development Growth and Regeneration,Hotel Accomodation,A46010,
http://opendatacommunities.org/id/london-borough-council/sutton,London Borough of Sutton,06/05/2022,10008360,197.50, LNER WEB SALES,TRAIN TICKETS TO ATTEND REIIF EVENT,Development Growth and Regeneration,Miscellaneous Expenses,A49000,
http://opendatacommunities.org/id/london-borough-council/sutton,London Borough of Sutton,06/05/2022,10008360,85.00, LNER WEB SALES,TRAIN TICKETS TO ATTEND REIIF EVENT,Development Growth and Regeneration,Miscellaneous Expenses,A49000,
http://opendatacommunities.org/id/london-borough-council/sutton,London Borough of Sutton,16/05/2022,10008360,-60.50, LNER WEB SALES,REFUND FOR TRAIN TICKETS,Development Growth and Regeneration,Miscellaneous Expenses,A49000,
http://opendatacommunities.org/id/london-borough-council/sutton,London Borough of Sutton,13/05/2022,10008360,50.83, LNER WEB SALES,TRAIN TICKET,Development Growth and Regeneration,Miscellaneous Expenses,A49000,
http://opendatacommunities.org/id/london-borough-council/sutton,London Borough of Sutton,06/05/2022,10008360,111.50, LNER WEB SALES,TRAIN TICKETS TO ATTEND REIIF EVENT,Development Growth and Regeneration,Contingency,A49001,
http://opendatacommunities.org/id/london-borough-council/sutton,London Borough of Sutton,23/05/2022,10008360,507.50, TESCO STORE 3235,AFGHAN RESETTLEMENT SCHEME,Environment Housing and Neighbourhoods,Other Supplies & Services,A44291,
http://opendatacommunities.org/id/london-borough-council/sutton,London Borough of Sutton,03/05/2022,10008360,488.33, RAFF ELECTRICAL,AFGHAN RESETTLEMENT SCHEME,Environment Housing and Neighbourhoods,Other Supplies & Services,A44291,
http://opendatacommunities.org/id/london-borough-council/sutton,London Borough of Sutton,23/05/2022,10008360,"1,250.00", FURNITURE WAREHOUSE,AFGHAN RESETTLEMENT SCHEME,Environment Housing and Neighbourhoods,Other Supplies & Services,A44291,
http://opendatacommunities.org/id/london-borough-council/sutton,London Borough of Sutton,23/05/2022,10008360,"1,250.00", FURNITURE WAREHOUSE,AFGHAN RESETTLEMENT SCHEME,Environment Housing and Neighbourhoods,Other Supplies & Services,A44291,
http://opendatacommunities.org/id/london-borough-council/sutton,London Borough of Sutton,04/05/2022,10008360,75.00, HMCTS CAMBERWELL077P,PAYMENT FOR YOUNG PERSON FINE,Peoples Services,Equipment And Materials Purchase,A40000,
http://opendatacommunities.org/id/london-borough-council/sutton,London Borough of Sutton,13/05/2022,10008360,14.00, GEN REGISTER OFFICE,FURNATURE AND EQUIPMENT FOR LAC YOUNG PERSON SETTING UP THEIR HOME,Peoples Services,Equipment And Materials Purchase,A40000,
http://opendatacommunities.org/id/london-borough-council/sutton,London Borough of Sutton,04/05/2022,10008360,34.00, CARDIFF COUNCIL EPAY,COPIES OF BIRTH CERTIFICATES FOR LAC TEAM,Peoples Services,Equipment And Materials Purchase,A40000,
http://opendatacommunities.org/id/london-borough-council/sutton,London Borough of Sutton,24/05/2022,10008360,2.86, FOREIGN EXCHAGE,A47010 G03040 FOREIGN EXCHANGE FEE NO RECEIPT PROVIDED BY COMPANY,Peoples Services,Subscriptions,A47010,
http://opendatacommunities.org/id/london-borough-council/sutton,London Borough of Sutton,24/05/2022,10008360,-0.06, FOREIGN EXCHAGE,A47010 G03040 FOREIGN EXCHANGE FEE NO RECEIPT PROVIDED BY COMPANY,Peoples Services,Subscriptions,A47010,
http://opendatacommunities.org/id/london-borough-council/sutton,London Borough of Sutton,23/05/2022,10008360,103.79, MOBICIP ENTERPRISE,CLA SUBSCRIPTION FOR GOVERNMENT LAPTOPS,Peoples Services,Subscriptions,A47010,
http://opendatacommunities.org/id/london-borough-council/sutton,London Borough of Sutton,20/05/2022,10008360,143.98, AMZNMKTPLACE,ANTIBACTERIAL ALCOHOL HAND AND SURFACE WIPES FOR THE QUAD (100%),Peoples Services,Miscellaneous Expenses,A49000,
http://opendatacommunities.org/id/london-borough-council/sutton,London Borough of Sutton,18/05/2022,10008360,8.06, SUBWAY 68205 CARSHALTO,DH ACTIVITY,Peoples Services,Miscellaneous Expenses,A49000,
http://opendatacommunities.org/id/london-borough-council/sutton,London Borough of Sutton,27/04/2022,10008360,23.52, CINEWORLD,FOR CONTACT,Peoples Services,Miscellaneous Expenses,A49000,
http://opendatacommunities.org/id/london-borough-council/sutton,London Borough of Sutton,13/05/2022,10008360,62.00, VMS HEMEL SNOWCENTRE,SNOW EXPERENCE FOR CONTACT VISIT WITH YOUNG PERSON FOR LEAVING CARE SERVICES,Peoples Services,Miscellaneous Expenses,A49000,
http://opendatacommunities.org/id/london-borough-council/sutton,London Borough of Sutton,19/05/2022,10008360,149.95, GO ACTION FOREST,ACTIVITY FOR A SUPERVISED CONTACT,Peoples Services,Miscellaneous Expenses,A49000,
http://opendatacommunities.org/id/london-borough-council/sutton,London Borough of Sutton,10/05/2022,10008360,153.50, PREMIER INN,HOTEL STAY,Peoples Services,Approved Lodgings,A61000,
http://opendatacommunities.org/id/london-borough-council/sutton,London Borough of Sutton,13/05/2022,10008360,103.33, HOLIDAY INNS,HOTEL REQUIRED FOR A CLIENT,Peoples Services,Approved Lodgings,A61000,
http://opendatacommunities.org/id/london-borough-council/sutton,London Borough of Sutton,10/05/2022,10008360,652.77, OPUS CARPETS,SETTING UP FOR A YOUNG PERSON,Peoples Services,Set Up Costs - Children Leaving Care,A61021,
http://opendatacommunities.org/id/london-borough-council/sutton,London Borough of Sutton,04/05/2022,10008360,319.99, AMZNMKTPLACE,"SPLIT - SLEEP FACTORY'S BLACK CRUSHED VELVET CHESTERFIELD BUMPER 2 DRAWER DIVAN BED SET, MATTRESS & HEADBOARD 4.6FT DOUBLE (100%)",Peoples Services,Set Up Costs - Children Leaving Care,A61021,
http://opendatacommunities.org/id/london-borough-council/sutton,London Borough of Sutton,04/05/2022,10008360,140.83, AMAZON.CO.UK 2D1973JE4,"SPLIT - SHARP 1T C24BE0KR1FR 24 INCH SMART TV, HD READY LED DISPLAY WITH DTS STUDIO SOUND, DOLBY DIGITAL AUDIO,BUILT-IN DVD PLAYER, FREEVIEW PLAY AND WIRELESS (100%)",Peoples Services,Set Up Costs - Children Leaving Care,A61021,
http://opendatacommunities.org/id/london-borough-council/sutton,London Borough of Sutton,03/05/2022,10008360,307.00, HMCTS CAMBERWELL077P,COURT,Peoples Services,Equipment And Materials Purchase,A40000,
http://opendatacommunities.org/id/london-borough-council/sutton,London Borough of Sutton,23/05/2022,10008360,21.05, HOLLYWOOD BOWL,"TWO ADULTS AND ONE JUNIOR TICKET FOR THE 11TH JUNE 2PM - 1 GAME , WATFORD ATRIA CONTACT VISIT LCS SUPPORTED LIVING",Peoples Services,Miscellaneous Expenses,A49000,
http://opendatacommunities.org/id/london-borough-council/sutton,London Borough of Sutton,23/05/2022,10008360,-1.99, SHAKHAWAT AZIZ,REFUNDED ITEM,Peoples Services,Miscellaneous Expenses,A49000,
http://opendatacommunities.org/id/london-borough-council/sutton,London Borough of Sutton,03/05/2022,10008360,3.99, AMZNMKTPLACE,ITEM NEEDED FOR A CLIENT (66.61%),Peoples Services,Miscellaneous Expenses,A49000,
http://opendatacommunities.org/id/london-borough-council/sutton,London Borough of Sutton,03/05/2022,10008360,2.00, AMZNMKTPLACE,BALANCING ENTRY AMOUNT (33.39%),Peoples Services,Miscellaneous Expenses,A49000,
http://opendatacommunities.org/id/london-borough-council/sutton,London Borough of Sutton,06/05/2022,10008360,0.69, FOREIGN EXCHAGE,FOREIGN EXCHANGE FEE NO RECEIPT PROVIDED,Peoples Services,Miscellaneous Expenses,A49000,
http://opendatacommunities.org/id/london-borough-council/sutton,London Borough of Sutton,05/05/2022,10008360,25.18, SHAKHAWAT AZIZ,PRESENT FOR A YOUNG PERSON -,Peoples Services,Miscellaneous Expenses,A49000,
http://opendatacommunities.org/id/london-borough-council/sutton,London Borough of Sutton,04/05/2022,10008360,15.27, AMZNMKTPLACE,ITEM NEEDED FOR A CLIENT (100%),Peoples Services,Miscellaneous Expenses,A49000,
http://opendatacommunities.org/id/london-borough-council/sutton,London Borough of Sutton,10/05/2022,10008360,14.00, AMZNMKTPLACE AMAZON.CO,ITEM NEEDED FOR THE WILLOW RISE CHILDRENS HOME (100%),Peoples Services,Miscellaneous Expenses,A49000,
http://opendatacommunities.org/id/london-borough-council/sutton,London Borough of Sutton,10/05/2022,10008360,24.98, AMZNMKTPLACE AMAZON.CO,ITEM NEEDED FOR THE WILLOW RISE CHILDRENS HOME (100%),Peoples Services,Miscellaneous Expenses,A49000,
http://opendatacommunities.org/id/london-borough-council/sutton,London Borough of Sutton,10/05/2022,10008360,22.00, AMZNMKTPLACE AMAZON.CO,ITEM NEEDED FOR THE WILLOW RISE CHILDRENS HOME (100%),Peoples Services,Miscellaneous Expenses,A49000,
http://opendatacommunities.org/id/london-borough-council/sutton,London Borough of Sutton,29/04/2022,10008360,42.00, TICKETS 78922315,TICKETS,Peoples Services,Miscellaneous Expenses,A49000,
http://opendatacommunities.org/id/london-borough-council/sutton,London Borough of Sutton,09/05/2022,10008360,31.98, AMZNMKTPLACE AMAZON.CO,ITEM NEEDED FOR THE WILLOW RISE CHILDRENS HOME (100%),Peoples Services,Miscellaneous Expenses,A49000,
http://opendatacommunities.org/id/london-borough-council/sutton,London Borough of Sutton,09/05/2022,10008360,20.99, AMZNMKTPLACE AMAZON.CO,ITEM NEEDED FOR THE WILLOW RISE CHILDRENS HOME (100%),Peoples Services,Miscellaneous Expenses,A49000,
http://opendatacommunities.org/id/london-borough-council/sutton,London Borough of Sutton,12/05/2022,10008360,8.99, AMZNMKTPLACE AMAZON.CO,ITEM NEEDED FOR THE WILLOW RISE CHILDRENS HOME (60.01%),Peoples Services,Miscellaneous Expenses,A49000,
http://opendatacommunities.org/id/london-borough-council/sutton,London Borough of Sutton,12/05/2022,10008360,5.99, AMZNMKTPLACE AMAZON.CO,BALANCING ENTRY AMOUNT (39.99%),Peoples Services,Miscellaneous Expenses,A49000,
http://opendatacommunities.org/id/london-borough-council/sutton,London Borough of Sutton,13/05/2022,10008360,-0.45, ASDA GROCERIES ONLINE,REFUND FOR FOOD ORDERED FOR WILLOW RISE CHILDRENS HOME,Peoples Services,Miscellaneous Expenses,A49000,
http://opendatacommunities.org/id/london-borough-council/sutton,London Borough of Sutton,12/05/2022,10008360,19.99, AMZNBUSINESS 2D4QM9WK4,ITEM NEEDED FOR THE WILLOW RISE CHILDRENS HOME (100%),Peoples Services,Miscellaneous Expenses,A49000,
http://opendatacommunities.org/id/london-borough-council/sutton,London Borough of Sutton,12/05/2022,10008360,12.99, AMZNBUSINESS 2D7TQ6WB4,ITEM NEEDED FOR THE WILLOW RISE CHILDRENS HOME (43.33%),Peoples Services,Miscellaneous Expenses,A49000,
http://opendatacommunities.org/id/london-borough-council/sutton,London Borough of Sutton,12/05/2022,10008360,16.99, AMZNBUSINESS 2D7TQ6WB4,SPLIT - CATCH PHRASE | GOLIATH GAMES | FAMILY GAME | FOR AGES 8+ | FOR 2-4 PLAYERS (56.67%),Peoples Services,Miscellaneous Expenses,A49000,
http://opendatacommunities.org/id/london-borough-council/sutton,London Borough of Sutton,12/05/2022,10008360,16.25, WHITE SPIDER CLIMBING,ACTIVITY FOR A YOUNG PERSON AT WILLOW RISE CHILDRENS HOME,Peoples Services,Miscellaneous Expenses,A49000,
http://opendatacommunities.org/id/london-borough-council/sutton,London Borough of Sutton,17/05/2022,10008360,11.21, TENPIN.CO.UK,ACTIVITY FOR A YOUNG PERSON,Peoples Services,Miscellaneous Expenses,A49000,
http://opendatacommunities.org/id/london-borough-council/sutton,London Borough of Sutton,13/05/2022,10008360,86.40, ASDA GROCERIES ONLINE,FOOD ORDERED FOR WILLOW RISE CHILDRENS HOME,Peoples Services,Miscellaneous Expenses,A49000,
http://opendatacommunities.org/id/london-borough-council/sutton,London Borough of Sutton,19/05/2022,10008360,12.60, AMZNMKTPLACE AMAZON.CO,SPLIT - EDUSHAPE MAGIC CREATIONS DINOSAURS BATH TOY (100%),Peoples Services,Miscellaneous Expenses,A49000,
http://opendatacommunities.org/id/london-borough-council/sutton,London Borough of Sutton,19/05/2022,10008360,22.99, AMZNMKTPLACE AMAZON.CO,SPLIT - SOKA DINOSAUR PLAYHOUSE FOR KIDS INDOOR OUTDOOR FOLDABLE PLAY TENT GAME BIRTHDAY PARTY TUNNEL PLAY FOR HOME BEDROOM GARDEN CAMPING BEACH CHILDREN BOYS (56.11%),Peoples Services,Miscellaneous Expenses,A49000,
http://opendatacommunities.org/id/london-borough-council/sutton,London Borough of Sutton,19/05/2022,10008360,9.00, AMZNMKTPLACE AMAZON.CO,"SPLIT - POOPSIE SLIME SURPRISE BAG OF 10 FUNNY UNICORN POOP BATH BOMBS FOR KIDS, RAINBOW MAGICAL BATH BOMBS FOR CHILDREN INCLUDES 10 SCENTED BATH POOPS (21.97%)",Peoples Services,Miscellaneous Expenses,A49000,
http://opendatacommunities.org/id/london-borough-council/sutton,London Borough of Sutton,19/05/2022,10008360,8.98, AMZNMKTPLACE AMAZON.CO,"SPLIT - NUNKI TOY FISHING BATH TOY,16 PACK MAGNETIC FISHING TOY(RANDOM FISH), WATERPROOF FLOATING FISHING PLAYSET BATHTUB POOL BATHTIME TOY FOR KIDS TODDLERS, (21.92%)",Peoples Services,Miscellaneous Expenses,A49000,
http://opendatacommunities.org/id/london-borough-council/sutton,London Borough of Sutton,19/05/2022,10008360,5.50, AMZNMKTPLACE AMAZON.CO,"SPLIT - PACK OF 6 BABY BATH CRAYONS NON TOXIC SKIN SAFE EDUCATIONAL FUN TOY, MAKE BATH TIME FUN, EASY WASHABLE WIPE CLEAN, DRAW IN THE TUB DRAWING WRITING DEV (100%)",Peoples Services,Miscellaneous Expenses,A49000,
http://opendatacommunities.org/id/london-borough-council/sutton,London Borough of Sutton,18/05/2022,10008360,10.00, TRANSPORT FOR LONDON,OYSTER RENEWAL PAYMENT,Peoples Services,Miscellaneous Expenses,A49000,
http://opendatacommunities.org/id/london-borough-council/sutton,London Borough of Sutton,23/05/2022,10008360,69.98, FOOTASYLUM ORDER,CLOTHES PAYMENT FOR YOUNG PERSON,Peoples Services,Miscellaneous Expenses,A49000,
http://opendatacommunities.org/id/london-borough-council/sutton,London Borough of Sutton,27/04/2022,10008360,3.39, AMZNMKTPLACE,ITEMS NEEDED FOR WILLOW RISE CHILDRENS HOME (100%),Peoples Services,Miscellaneous Expenses,A49000,
http://opendatacommunities.org/id/london-borough-council/sutton,London Borough of Sutton,27/04/2022,10008360,12.25, AMZNMKTPLACE,ITEMS NEEDED FOR THE CHILDRENS HOME,Peoples Services,Miscellaneous Expenses,A49000,
http://opendatacommunities.org/id/london-borough-council/sutton,London Borough of Sutton,26/04/2022,10008360,4.98, AMZNMKTPLACE,ITEM NEEDED FOR THE WILLOW RISE CHILDRENS HOME (100%),Peoples Services,Miscellaneous Expenses,A49000,
http://opendatacommunities.org/id/london-borough-council/sutton,London Borough of Sutton,26/04/2022,10008360,12.50, AMZNMKTPLACE,ITEM NEEDED FOR THE WILLOW RISE CHILDRENS HOME (75.99%),Peoples Services,Miscellaneous Expenses,A49000,
http://opendatacommunities.org/id/london-borough-council/sutton,London Borough of Sutton,26/04/2022,10008360,3.95, AMZNMKTPLACE,ITEMS REQUIRED FOR THE WILLOW RISE CHILDRENS HOME (24.01%),Peoples Services,Miscellaneous Expenses,A49000,
http://opendatacommunities.org/id/london-borough-council/sutton,London Borough of Sutton,20/05/2022,10008360,30.60, AMZNMKTPLACE,ITEM NEEDED FOR THE WILLOW RISE CHILDRENS HOME (100%),Peoples Services,Miscellaneous Expenses,A49000,
http://opendatacommunities.org/id/london-borough-council/sutton,London Borough of Sutton,18/05/2022,10008360,34.38, AMZNMKTPLACE,ITEM NEEDED FOR THE WILLOW RISE CHILDRENS HOME (72.75%),Peoples Services,Miscellaneous Expenses,A49000,
http://opendatacommunities.org/id/london-borough-council/sutton,London Borough of Sutton,18/05/2022,10008360,12.88, AMZNMKTPLACE,SPLIT - WALL CLOCK SILENT NON TICKING - 12 INCH QUALITY QUARTZ ROUND EASY TO READ FOR HOME/OFFICE/SCHOOL (GREY GOLD) (27.25%),Peoples Services,Miscellaneous Expenses,A49000,
http://opendatacommunities.org/id/london-borough-council/sutton,London Borough of Sutton,18/05/2022,10008360,13.30, AMZNMKTPLACE AMAZON.CO,ITEM NEEDED FOR THE WILLOW RISE CHILDRENS HOME (100%),Peoples Services,Miscellaneous Expenses,A49000,
http://opendatacommunities.org/id/london-borough-council/sutton,London Borough of Sutton,19/05/2022,10008360,6.39, AMZNMKTPLACE AMAZON.CO,ITEM NEEDED FOR THE WILLOW RISE CHILDRENS HOME (100%),Peoples Services,Miscellaneous Expenses,A49000,
http://opendatacommunities.org/id/london-borough-council/sutton,London Borough of Sutton,05/05/2022,10008360,83.50, ASDA GROCERIES ONLINE,ASDA CLEANING PRODUCTS PAYMENT,Peoples Services,Miscellaneous Expenses,A49000,
http://opendatacommunities.org/id/london-borough-council/sutton,London Borough of Sutton,04/05/2022,10008360,20.47, AMZNMKTPLACE,"SPLIT - AMAZON BASICS MAGNETIC WHITEBOARD WITH PEN TRAY, ALUMINIUM TRIM AND DRY-WIPE WRITING SURFACE, 60 X 45CM (WXH), WHITE (100%)",Peoples Services,Miscellaneous Expenses,A49000,
http://opendatacommunities.org/id/london-borough-council/sutton,London Borough of Sutton,04/05/2022,10008360,20.47, AMZNMKTPLACE,"SPLIT - AMAZON BASICS MAGNETIC WHITEBOARD WITH PEN TRAY, ALUMINIUM TRIM AND DRY-WIPE WRITING SURFACE, 60 X 45CM (WXH), WHITE (100%)",Peoples Services,Miscellaneous Expenses,A49000,
http://opendatacommunities.org/id/london-borough-council/sutton,London Borough of Sutton,04/05/2022,10008360,8.94, AMZNMKTPLACE,"SPLIT - MAXTEK WHITEBOARD PENS MARKERS 3 ASSORTED COLORS BLACK BLUE RED DRY ERASE PENS FOR OFFICE,SCHOOLS,HOME,12PCS PACK (100%)",Peoples Services,Miscellaneous Expenses,A49000,
http://opendatacommunities.org/id/london-borough-council/sutton,London Borough of Sutton,04/05/2022,10008360,30.00, AMZNMKTPLACE,SPLIT - FRAMELESS BEDROOM ROUND MIRROR KIDS SAFE SHATTERPROOF MIRROR (100%),Peoples Services,Miscellaneous Expenses,A49000,
http://opendatacommunities.org/id/london-borough-council/sutton,London Borough of Sutton,04/05/2022,10008360,9.99, AMZNMKTPLACE,"SPLIT - 9 X SOLAR SYSTEM BATH BOMBS GIFT SET, 9 X PLANETARY FACT CARDS, EDUCATIONAL PLANET BATH BOMB TOY FOR CHILDREN, PERFECT BIRTHDAY GIFT FOR BOYS & GIRLS, (100%)",Peoples Services,Miscellaneous Expenses,A49000,
http://opendatacommunities.org/id/london-borough-council/sutton,London Borough of Sutton,04/05/2022,10008360,14.99, AMZNMKTPLACE,"SPLIT - ARM & HAMMER, KID'S SPINBRUSH, JURASSIC WORLD, SOFT, 1 BATTERY POWERED TOOTHBRUSH (100%)",Peoples Services,Miscellaneous Expenses,A49000,
http://opendatacommunities.org/id/london-borough-council/sutton,London Borough of Sutton,12/05/2022,10008360,464.17, IKEA LTD SHOP ONLINE,ITEMS REQUIRED FOR A YOUNG PERSON,Peoples Services,Miscellaneous Expenses,A49000,
http://opendatacommunities.org/id/london-borough-council/sutton,London Borough of Sutton,06/05/2022,10008360,324.97, CURRYS ONLINE,SETTING UP FOR A YOUNG PERSON,Peoples Services,Set Up Costs - Children Leaving Care,A61021,
http://opendatacommunities.org/id/london-borough-council/sutton,London Borough of Sutton,06/05/2022,10008360,516.66, ARGOS LTD,ITEM REQUIRED FOR A YOUNG PERSON,Peoples Services,Set Up Costs - Children Leaving Care,A61021,
http://opendatacommunities.org/id/london-borough-council/sutton,London Borough of Sutton,17/05/2022,10008360,159.90, ZOOM.US 888-799-9666,REQUIRED FOR TEAM MEETINGS,Peoples Services,Subscriptions,A47010,
http://opendatacommunities.org/id/london-borough-council/sutton,London Borough of Sutton,30/04/2022,10008360,175.43, ZOOM.US 888-799-9666,SUBSCRIPTION FOR TEAM TO HAVE BIG MEETINGS,Peoples Services,Subscriptions,A47010,
http://opendatacommunities.org/id/london-borough-council/sutton,London Borough of Sutton,23/05/2022,10008360,33.00, SUTTON REGISTER OFFICE,BIRTH CERT,Peoples Services,Equipment And Materials Purchase,A40000,
http://opendatacommunities.org/id/london-borough-council/sutton,London Borough of Sutton,23/05/2022,10008360,33.00, SUTTON REGISTER OFFICE,BIRTH CERT,Peoples Services,Equipment And Materials Purchase,A40000,
http://opendatacommunities.org/id/london-borough-council/sutton,London Borough of Sutton,23/05/2022,10008360,33.00, SUTTON REGISTER OFFICE,BIRTH CERT,Peoples Services,Equipment And Materials Purchase,A40000,
http://opendatacommunities.org/id/london-borough-council/sutton,London Borough of Sutton,26/04/2022,10008360,33.00, SUTTON REGISTER OFFICE,SUTTON BIRTH CERTFICATE,Peoples Services,Equipment And Materials Purchase,A40000,
http://opendatacommunities.org/id/london-borough-council/sutton,London Borough of Sutton,27/04/2022,10008360,99.10, HOTEL AT BOOKING.COM,HOTEL STAY,Peoples Services,Miscellaneous Expenses,A49000,
http://opendatacommunities.org/id/london-borough-council/sutton,London Borough of Sutton,27/04/2022,10008360,774.00, HOTEL AT BOOKING.COM,HOTEL STAY,Peoples Services,Miscellaneous Expenses,A49000,
http://opendatacommunities.org/id/london-borough-council/sutton,London Borough of Sutton,19/05/2022,10008360,152.12, AIRPAY 45217119-BRIGHT,TAXI REQUIRED FOR SOCIAL WORKER AND CLIENTS,Peoples Services,C.C.A Travel & Subsistance,A61010,
http://opendatacommunities.org/id/london-borough-council/sutton,London Borough of Sutton,18/05/2022,10008360,8.31, AMZNMKTPLACE AMAZON.CO,ITEM NEEDED FOR A CLIENT (100%),Peoples Services,C.C.A Travel & Subsistance,A61010,
http://opendatacommunities.org/id/london-borough-council/sutton,London Borough of Sutton,27/04/2022,10008360,281.98, EASYJET,EASYJET FLIGHT PAYMENT,Peoples Services,Client Care/Assistance,A61011,
http://opendatacommunities.org/id/london-borough-council/sutton,London Borough of Sutton,27/04/2022,10008360,120.17, EXPEDIA,HOTEL PAYMENT,Peoples Services,Client Care/Assistance,A61011,
http://opendatacommunities.org/id/london-borough-council/sutton,London Borough of Sutton,27/04/2022,10008360,389.13, BUDGETAIR.CO.UK,FLIGHT PAYMENT,Peoples Services,Client Care/Assistance,A61011,
http://opendatacommunities.org/id/london-borough-council/sutton,London Borough of Sutton,05/05/2022,10008360,148.95, ARGOS LTD,ARGOS WARDROBE PAYMENT,Peoples Services,Client Care/Assistance,A61011,
http://opendatacommunities.org/id/london-borough-council/sutton,London Borough of Sutton,27/04/2022,10008360,166.72, EXPEDIA 72293768839450,HOTEL PAYMENT,Peoples Services,Client Care/Assistance,A61011,
http://opendatacommunities.org/id/london-borough-council/sutton,London Borough of Sutton,12/05/2022,10008360,128.33, SP LOOPMOBILEUK,PHONE REQUIRED,Peoples Services,Client Care/Assistance,A61011,
http://opendatacommunities.org/id/london-borough-council/sutton,London Borough of Sutton,29/04/2022,10008360,13.82, UKVI 3JL0030214847,OVERSEAS PRACTITIONERS EXCHANGE FEE,Peoples Services,Client Care/Assistance,A61011,
http://opendatacommunities.org/id/london-borough-council/sutton,London Borough of Sutton,28/04/2022,10008360,502.70, UKVI 3JL0030214847,IMMIGRATION OVERSEAS PRACTITIONERS 28TH APRIL 2022 ,Peoples Services,Client Care/Assistance,A61011,
http://opendatacommunities.org/id/london-borough-council/sutton,London Borough of Sutton,27/04/2022,10008360,-57.43, UKVI 3JL0030214847,IMMIGRATION OVERSEAS PRACTITIONERS 28TH APRIL 2022,Peoples Services,Client Care/Assistance,A61011,
http://opendatacommunities.org/id/london-borough-council/sutton,London Borough of Sutton,12/05/2022,10008360,49.00, INTERFLORA BRITISH UNI,FLOWERS,Peoples Services,Equipment And Materials Purchase,A40000,
http://opendatacommunities.org/id/london-borough-council/sutton,London Borough of Sutton,22/05/2022,10008360,70.00, FACEBK  C9JWQDFH32,FACEBOOK AD FOR FOSTERING RECRUITMENT,Peoples Services,Communications,A45025,
http://opendatacommunities.org/id/london-borough-council/sutton,London Borough of Sutton,19/05/2022,10008360,70.00, FACEBK  JMMMBDKH32,FACEBOOK AD FOR FOSTERING RECRUITMENT,Peoples Services,Communications,A45025,
http://opendatacommunities.org/id/london-borough-council/sutton,London Borough of Sutton,12/05/2022,10008360,70.00, FACEBK  VLN96CBH32,FACEBOOK AD FOR FOSTERING RECRUITMENT,Peoples Services,Communications,A45025,
http://opendatacommunities.org/id/london-borough-council/sutton,London Borough of Sutton,26/04/2022,10008360,26.73, FACEBK  5QQWFCXG32,FACEBOOK ADVERTISING FOR FOSTERING RECRUITMENT,Peoples Services,Fostering Allowances,A56008,
http://opendatacommunities.org/id/london-borough-council/sutton,London Borough of Sutton,22/02/2022,10008360,"-2,088.35", IMM HEALTH SURCHAR,"2,633.02 YOUR IMMIGRATION HEALTH SURCHARGE PAYMENT.PDF",Peoples Services,Client Care/Assistance,A61011,
http://opendatacommunities.org/id/london-borough-council/sutton,London Borough of Sutton,23/05/2022,10008360,52.00, INTERFLORA UK,FLOWERS TO A FAMILY FOR SUPPORT FROM THE FOSTERING TEAM,Peoples Services,Client Care/Assistance,A61011,
http://opendatacommunities.org/id/london-borough-council/sutton,London Borough of Sutton,08/05/2022,10008360,8.85, AMZNBUSINESS 2D9YD3584,"SPLIT - HELP! I'VE GOT AN ALARM BELL GOING OFF IN MY HEAD!: HOW PANIC, ANXIETY AND STRESS AFFECT YOUR BODY (105.11%)",Peoples Services,Equipment And Materials Purchase,A40000,
http://opendatacommunities.org/id/london-borough-council/sutton,London Borough of Sutton,08/05/2022,10008360,-0.43, AMZNBUSINESS 2D9YD3584,BALANCING ENTRY AMOUNT (-15.33%),Peoples Services,Equipment And Materials Purchase,A40000,
http://opendatacommunities.org/id/london-borough-council/sutton,London Borough of Sutton,08/05/2022,10008360,15.39, AMZNBUSINESS 2D3OK3514,SPLIT - THE A-Z OF THERAPEUTIC PARENTING: STRATEGIES AND SOLUTIONS (THERAPEUTIC PARENTING BOOKS) (31.75%),Peoples Services,Equipment And Materials Purchase,A40000,
http://opendatacommunities.org/id/london-borough-council/sutton,London Borough of Sutton,08/05/2022,10008360,5.94, AMZNBUSINESS 2D3OK3514,SPLIT - ALL ARE WELCOME (12.26%),Peoples Services,Equipment And Materials Purchase,A40000,
http://opendatacommunities.org/id/london-borough-council/sutton,London Borough of Sutton,08/05/2022,10008360,7.68, AMZNBUSINESS 2D3OK3514,SPLIT - DON'T TOUCH MY HAIR,Peoples Services,Equipment And Materials Purchase,A40000,
http://opendatacommunities.org/id/london-borough-council/sutton,London Borough of Sutton,08/05/2022,10008360,13.99, AMZNBUSINESS 2D3OK3514,SPLIT - WHY I'M NO LONGER TALKING TO WHITE PEOPLE ABOUT RACE: THE SUNDAY TIMES BESTSELLER (28.86%),Peoples Services,Equipment And Materials Purchase,A40000,
http://opendatacommunities.org/id/london-borough-council/sutton,London Borough of Sutton,08/05/2022,10008360,6.49, AMZNBUSINESS 2D3OK3514,SPLIT - MY TWO GRANNIES (13.39%),Peoples Services,Equipment And Materials Purchase,A40000,
http://opendatacommunities.org/id/london-borough-council/sutton,London Borough of Sutton,08/05/2022,10008360,-1.02, AMZNBUSINESS 2D3OK3514,BALANCING ENTRY AMOUNT (-6.3%),Peoples Services,Equipment And Materials Purchase,A40000,
http://opendatacommunities.org/id/london-borough-council/sutton,London Borough of Sutton,08/05/2022,10008360,18.32, AMZNBUSINESS 2D9UQ65I4,"SPLIT - I AM WHOLE: A MULTI-RACIAL CHILDREN'S BOOK CELEBRATING DIVERSITY, LANGUAGE, RACE AND CULTURE (58.49%)",Peoples Services,Equipment And Materials Purchase,A40000,
http://opendatacommunities.org/id/london-borough-council/sutton,London Borough of Sutton,08/05/2022,10008360,13.00, AMZNBUSINESS 2D9UQ65I4,SPLIT - OUTLANDERS: HIDDEN NARRATIVES FROM SOCIAL WORKERS OF COLOUR (FROM BLACK & OTHER GLOBAL MAJORITY COMMUNITIES) (41.51%),Peoples Services,Equipment And Materials Purchase,A40000,
http://opendatacommunities.org/id/london-borough-council/sutton,London Borough of Sutton,06/05/2022,10008360,7.99, AMZNBUSINESS 2D8K59PI4,SPLIT - SHINE (105.27%),Peoples Services,Equipment And Materials Purchase,A40000,
http://opendatacommunities.org/id/london-borough-council/sutton,London Borough of Sutton,06/05/2022,10008360,-0.40, AMZNBUSINESS 2D8K59PI4,BALANCING ENTRY AMOUNT (-15.81%),Peoples Services,Equipment And Materials Purchase,A40000,
http://opendatacommunities.org/id/london-borough-council/sutton,London Borough of Sutton,06/05/2022,10008360,5.03, AMZN DIGITAL 2D3W54PG4,DIGITAL AMAZON BOOK PAYMENT,Peoples Services,Equipment And Materials Purchase,A40000,
http://opendatacommunities.org/id/london-borough-council/sutton,London Borough of Sutton,06/05/2022,10008360,9.39, AMZN DIGITAL 2D7WK3P24,DIGITAL AMAZON BOOK PAYMENT,Peoples Services,Equipment And Materials Purchase,A40000,
http://opendatacommunities.org/id/london-borough-council/sutton,London Borough of Sutton,06/05/2022,10008360,-5.03, AMZN DIGITAL,DIGITAL AMAZON BOOK REFUND,Peoples Services,Equipment And Materials Purchase,A40000,
http://opendatacommunities.org/id/london-borough-council/sutton,London Borough of Sutton,06/05/2022,10008360,-9.39, AMZN DIGITAL,DIGITAL AMAZON BOOK REFUND,Peoples Services,Equipment And Materials Purchase,A40000,
http://opendatacommunities.org/id/london-borough-council/sutton,London Borough of Sutton,06/05/2022,10008360,62.40, WWW.CORAM.ORG.UK,CORAM BAAF BOOK PAYMENT,Peoples Services,Equipment And Materials Purchase,A40000,
http://opendatacommunities.org/id/london-borough-council/sutton,London Borough of Sutton,16/05/2022,10008360,7.99, AMZNBUSINESS 255TS9374,"REQUIRED FOR THE TEAM A61021 G03210 SG, KINSHIP AND PLACEMENTS SERVICE (100%)",Peoples Services,Miscellaneous Expenses,A49000,
http://opendatacommunities.org/id/london-borough-council/sutton,London Borough of Sutton,16/05/2022,10008360,29.17, RBK REGISTER OFFICE,FLOWERS REQUIRED AS A PRESENT,Peoples Services,Client Care/Assistance,A61011,
http://opendatacommunities.org/id/london-borough-council/sutton,London Borough of Sutton,23/05/2022,10008360,35.00, MARKS&SPENCER PLC,"FLOWERS TO THANK A FAMILY WHO WERE FOSTERING A CHILD FOR THEIR LOVE, CARE AND DEDICATION",Peoples Services,Client Care/Assistance,A61011,
http://opendatacommunities.org/id/london-borough-council/sutton,London Borough of Sutton,09/05/2022,10008360,72.75, WWW.WIGHTLINK.CO.UK,TRAVEL,Peoples Services,Equipment And Materials Purchase,A40000,
http://opendatacommunities.org/id/london-borough-council/sutton,London Borough of Sutton,28/04/2022,10008360,248.33, HOLIDAY INNS,HOLIDAY INN BOOKING FOR LSCP CHAIR,Peoples Services,Consultancy Services,A56007,
http://opendatacommunities.org/id/london-borough-council/sutton,London Borough of Sutton,12/05/2022,10008360,3.22, MENTIMETER,MENTIMETER BASIC RENEWAL FOR THE TEAM - FOREIGN EXCHANGE FEE,Peoples Services,Staff Development And Training,A15022,
http://opendatacommunities.org/id/london-borough-council/sutton,London Borough of Sutton,11/05/2022,10008360,117.06, MENTIMETER,MENTIMETER BASIC RENEWAL FOR THE TEAM - BUSINESS AND PROFESSIONAL DEVELOPMENT (CHILDRENSTRAINING@SUTTON.GOV.UK),Peoples Services,Staff Development And Training,A15022,
http://opendatacommunities.org/id/london-borough-council/sutton,London Borough of Sutton,05/05/2022,10008360,931.00, S.C.T.S,SOCIAL CARE TRAINING SOLUTIONS X4 COURSES FOSTER CARE FORUMS 2022-23,Peoples Services,Staff Development And Training,A15022,
http://opendatacommunities.org/id/london-borough-council/sutton,London Borough of Sutton,05/05/2022,10008360,298.80, MAG EVENTS,SEND SUMMIT EXTERNAL TRAINING,Peoples Services,Staff Development And Training,A15022,
http://opendatacommunities.org/id/london-borough-council/sutton,London Borough of Sutton,10/05/2022,10008360,110.40, STAPLES,STAPLES STATIONARY,Peoples Services,Stationery,A43015,
http://opendatacommunities.org/id/london-borough-council/sutton,London Borough of Sutton,18/05/2022,10008360,35.00, GEN REGISTER OFFICE,BIRTH CERT REQUIRED FOR LEGAL PROCEEDINGS,Peoples Services,Equipment And Materials Purchase,A40000,
http://opendatacommunities.org/id/london-borough-council/sutton,London Borough of Sutton,11/05/2022,10008360,18.33, SUTTON REGISTER OFFICE,BIRTH CERT NEEDED FOR LEGAL PROCEEDINGS,Peoples Services,Equipment And Materials Purchase,A40000,
http://opendatacommunities.org/id/london-borough-council/sutton,London Borough of Sutton,18/05/2022,10008360,999.00, WP-MA EDUCATION LT,PAYMENT REQUIRED BY THE TEAM,Peoples Services,Equipment And Materials Purchase,A40000,
http://opendatacommunities.org/id/london-borough-council/sutton,London Borough of Sutton,05/05/2022,10008360,86.50, ACCESS SUTTON,ACCESS STORAGE,Peoples Services,Equipment And Materials Purchase,A40000,
http://opendatacommunities.org/id/london-borough-council/sutton,London Borough of Sutton,24/05/2022,10008360,37.49, AMZNBUSINESS 251K23U34,GOODS FOR DYMOND HOUSE REABLEMENT FLATS,Peoples Services,Miscellaneous Expenses,A49000,
http://opendatacommunities.org/id/london-borough-council/sutton,London Borough of Sutton,23/05/2022,10008360,2.87, AMZNBUSINESS 259I437I4,GOODS FOR DYMOND HOUSE REABLEMENT FLATS,Peoples Services,Miscellaneous Expenses,A49000,
http://opendatacommunities.org/id/london-borough-council/sutton,London Borough of Sutton,20/05/2022,10008360,10.37, AMZNMKTPLACE AMAZON.CO,GOODS FOR DYMOND HOUSE REABLEMENT FLATS,Peoples Services,Miscellaneous Expenses,A49000,
http://opendatacommunities.org/id/london-borough-council/sutton,London Borough of Sutton,16/05/2022,10008360,-34.97, AMZNMKTPLACE AMAZON.CO,GOODS FOR DYMOND HOUSE REABLEMENT FLATS - NOT RECEIVED,Peoples Services,Miscellaneous Expenses,A49000,
http://opendatacommunities.org/id/london-borough-council/sutton,London Borough of Sutton,16/05/2022,10008360,-72.42, AMZNMKTPLACE AMAZON.CO,GOODS FOR DYMOND HOUSE REABLEMENT FLATS - NOT RECEIVED,Peoples Services,Miscellaneous Expenses,A49000,
http://opendatacommunities.org/id/london-borough-council/sutton,London Borough of Sutton,09/05/2022,10008360,18.97, AMZNMKTPLACE AMAZON.CO,GOODS FOR DYMOND HOUSE REABLEMENT FLATS,Peoples Services,Miscellaneous Expenses,A49000,
http://opendatacommunities.org/id/london-borough-council/sutton,London Borough of Sutton,09/05/2022,10008360,19.59, AMZNMKTPLACE AMAZON.CO,GOODS FOR DYMOND HOUSE REABLEMENT FLATS,Peoples Services,Miscellaneous Expenses,A49000,
http://opendatacommunities.org/id/london-borough-council/sutton,London Borough of Sutton,09/05/2022,10008360,80.72, AMZNMKTPLACE AMAZON.CO,GOODS FOR DYMOND HOUSE REABLEMENT FLATS,Peoples Services,Miscellaneous Expenses,A49000,
http://opendatacommunities.org/id/london-borough-council/sutton,London Borough of Sutton,09/05/2022,10008360,38.54, AMZNMKTPLACE AMAZON.CO,GOODS FOR DYMOND HOUSE REABLEMENT FLATS,Peoples Services,Miscellaneous Expenses,A49000,
http://opendatacommunities.org/id/london-borough-council/sutton,London Borough of Sutton,09/05/2022,10008360,38.54, AMZNMKTPLACE AMAZON.CO,GOODS FOR DYMOND HOUSE REABLEMENT FLATS,Peoples Services,Miscellaneous Expenses,A49000,
http://opendatacommunities.org/id/london-borough-council/sutton,London Borough of Sutton,09/05/2022,10008360,107.40, AMZNMKTPLACE AMAZON.CO,GOODS FOR DYMOND HOUSE REABLEMENT FLATS,Peoples Services,Miscellaneous Expenses,A49000,
http://opendatacommunities.org/id/london-borough-council/sutton,London Borough of Sutton,09/05/2022,10008360,38.54, AMZNMKTPLACE AMAZON.CO,GOODS FOR DYMOND HOUSE REABLEMENT FLATS,Peoples Services,Miscellaneous Expenses,A49000,
http://opendatacommunities.org/id/london-borough-council/sutton,London Borough of Sutton,09/05/2022,10008360,238.75, IKEA LTD SHOP ONLINE,MISCELLANEOUS SOFT FURNISHING FOR DYMOND HOUSE,Peoples Services,Miscellaneous Expenses,A49000,
http://opendatacommunities.org/id/london-borough-council/sutton,London Borough of Sutton,06/05/2022,10008360,291.46, WILKO.COM,EMERGENCY FOOD VOUCHERS FOR START CLIENTS,Peoples Services,Miscellaneous Expenses,A49000,
http://opendatacommunities.org/id/london-borough-council/sutton,London Borough of Sutton,09/05/2022,10008360,50.00, ALLIUM,FUNERALWREATHTAYLOR,Peoples Services,Funeral Expenses,A44220,
http://opendatacommunities.org/id/london-borough-council/sutton,London Borough of Sutton,04/05/2022,10008360,11.00, SUTTON REGISTER OFFICE,DEATHCERTMCKINNEY,Peoples Services,Funeral Expenses,A44220,
http://opendatacommunities.org/id/london-borough-council/sutton,London Borough of Sutton,18/05/2022,10008360,20.00, TFL OYSTER AUTO TOPUP,"AUTO OYSTER TOP UP FOR ""REDACTED - PERSONAL DATA"" ",Peoples Services,Non-Staff Travel Subsistence & Training,A46006,
http://opendatacommunities.org/id/london-borough-council/sutton,London Borough of Sutton,18/05/2022,10008360,59.27, THETRAINLINE.COM,TRAINLINE DG,Health and Wellbeing,C.C.A Travel & Subsistance,A61010,
http://opendatacommunities.org/id/london-borough-council/sutton,London Borough of Sutton,29/04/2022,10008360,20.83, EXAMSCREEN,EXAMSCREEN SUBSCRIPTION TO APR 29 2023,Health and Wellbeing,Registration & Licence Fees Payable,A44267,
http://opendatacommunities.org/id/london-borough-council/sutton,London Borough of Sutton,06/05/2022,10008360,42.07, GSUITE_SUTTONCOLLEGE.A,GOOGLE CLOUD EMEA LIMITED,Health and Wellbeing,Subscriptions,A47010,
http://opendatacommunities.org/id/london-borough-council/sutton,London Borough of Sutton,23/05/2022,10008360,"1,181.00", WWW.INSTANTPRINT.C,INSTANTPRINT 2223 COURSE GUIDES & ENROL 230522 1181 AND 38,Health and Wellbeing,Publicity,A44266,
http://opendatacommunities.org/id/london-borough-council/sutton,London Borough of Sutton,16/05/2022,10008360,35.84, AMZNMKTPLACE AMAZON.CO,"SPLIT - COMMAND POSTER HANGING STRIPS, 136 TOTAL STRIPS (17024-136ES) (100%)",Health and Wellbeing,Publicity,A44266,
http://opendatacommunities.org/id/london-borough-council/sutton,London Borough of Sutton,09/05/2022,10008360,47.99, ADOBE STOCK,ADOBE 070522 47.99,Health and Wellbeing,Publicity,A44266,
http://opendatacommunities.org/id/london-borough-council/sutton,London Borough of Sutton,08/05/2022,10008360,8.69, AMZNMKTPLACE,SPLIT - GOLD BALLOONS METALLIC BALLOONS 100 PCS 10 INCH GOLD LATEX BALLOONS FOR BIRTHDAY ENGAGEMENT WEDDING BABY SHOWER FESTIVAL PARTY DECORATIONS GOLD METALL (100%),Health and Wellbeing,Publicity,A44266,
http://opendatacommunities.org/id/london-borough-council/sutton,London Borough of Sutton,30/04/2022,10008360,79.37, MAILCHIMP,MAILCHIMP 300422 79.37,Health and Wellbeing,Publicity,A44266,
http://opendatacommunities.org/id/london-borough-council/sutton,London Borough of Sutton,28/04/2022,10008360,41.66, WWW.SCREWFIX.COM,WORK SHOES FOR  REDACTED - PERSONAL DATA SITE SUPERVISOR,Health and Wellbeing,Health & Safety Equipment,A40080,
http://opendatacommunities.org/id/london-borough-council/sutton,London Borough of Sutton,05/05/2022,10008360,314.96, ARGOS LTD,5 X PORTABLE RADIATORS,Health and Wellbeing,Insurance Claims,A44261,
http://opendatacommunities.org/id/london-borough-council/sutton,London Borough of Sutton,23/05/2022,10008360,25.30, WM MORRISONS STORE,MORRISONS CATERING LM COURSE,Health and Wellbeing,Miscellaneous Expenses,A49000,
http://opendatacommunities.org/id/london-borough-council/sutton,London Borough of Sutton,20/05/2022,10008360,82.44, AW CHAMPION LTD,WOODWORK SATURDAY,Health and Wellbeing,Equipment And Materials Purchase,A40000,
http://opendatacommunities.org/id/london-borough-council/sutton,London Borough of Sutton,12/05/2022,10008360,712.74, PPL PRS LTD,PRS ROYALTIES TO 14TH APR 2023,Health and Wellbeing,Equipment And Materials Purchase,A40000,
http://opendatacommunities.org/id/london-borough-council/sutton,London Borough of Sutton,08/05/2022,10008360,10.16, ASDA STORES,TRANSACTION REFUNDED AFTER LOST CARD,Health and Wellbeing,Equipment And Materials Purchase,A40000,
http://opendatacommunities.org/id/london-borough-council/sutton,London Borough of Sutton,08/05/2022,10008360,-10.16, LLOYDS,TRANSACTION REFUNDED AFTER LOST CARD,Health and Wellbeing,Equipment And Materials Purchase,A40000,
http://opendatacommunities.org/id/london-borough-council/sutton,London Borough of Sutton,04/05/2022,10008360,18.24, SAINSBURYS S/MKTS,Cookery ingreediants,Health and Wellbeing,Equipment And Materials Purchase,A40000,
http://opendatacommunities.org/id/london-borough-council/sutton,London Borough of Sutton,26/04/2022,10008360,20.56, SAINSBURYS S/MKTS,Cookery ingreediants,Health and Wellbeing,Equipment And Materials Purchase,A40000,
http://opendatacommunities.org/id/london-borough-council/sutton,London Borough of Sutton,22/05/2022,10008360,6.55, AMAZON.CO.UK 2519Z3D54,SPLIT - LITTLE LEADERS: BOLD WOMEN IN BLACK HISTORY (34.88%),Peoples Services,LAC - Education,A44280,
http://opendatacommunities.org/id/london-borough-council/sutton,London Borough of Sutton,22/05/2022,10008360,5.94, AMAZON.CO.UK 2519Z3D54,SPLIT - ONE TIME (31.63%),Peoples Services,LAC - Education,A44280,
http://opendatacommunities.org/id/london-borough-council/sutton,London Borough of Sutton,20/05/2022,10008360,24.78, AMZNMKTPLACE,SPLIT - CALCULUS: EARLY TRANSCENDENTALS (89.85%),Peoples Services,LAC - Education,A44280,
http://opendatacommunities.org/id/london-borough-council/sutton,London Borough of Sutton,20/05/2022,10008360,2.80, AMZNMKTPLACE,BALANCING ENTRY AMOUNT (10.15%),Peoples Services,LAC - Education,A44280,
http://opendatacommunities.org/id/london-borough-council/sutton,London Borough of Sutton,16/05/2022,10008360,191.66, AMAZON.CO.UK 253FA5JB4,"SPLIT - LENOVO IDEAPAD DUET CHROMEBOOK 10.1 INCH FHD 2-IN-1 LAPTOP - (MEDIATEK P60T, 4 GB RAM, 64 GB EMCP, CHROME OS) (100%)",Peoples Services,LAC - Education,A44280,
http://opendatacommunities.org/id/london-borough-council/sutton,London Borough of Sutton,13/05/2022,10008360,141.66, AMAZON.CO.UK 250F83CY4,"SPLIT - ACER CHROMEBOOK 314 CB314-H - (INTEL CELERON N4000, 4GB RAM, 32GB EMMC, 14 INCH HD DISPLAY, CHROME OS, SILVER) (100%)",Peoples Services,LAC - Education,A44280,
http://opendatacommunities.org/id/london-borough-council/sutton,London Borough of Sutton,13/05/2022,10008360,62.00, THE SNOW CENTRE,1.00 BALANCE INVOICE IN RELATION FULL DAY IN THE ALPSWEDNESDAY 1ST JUNE 2022 X 20 PUPILS @ 78.00PER PUPIL.670.83 0.00 670.83 20.00 134.171.00 1 EXTTO YOUR RECENT BOOKINGWITH THE SNOW CENTRE HEMEL HEMPSTEADREFERENCE Z28LKQB,Peoples Services,LAC - Education,A44280,
http://opendatacommunities.org/id/london-borough-council/sutton,London Borough of Sutton,13/05/2022,10008360,26.49, AMZNMKTPLACE,"SPLIT - THE ART OF HAPPINESS A HANDBOOK FOR LIVING, LONG WALK TO FREEDOM, DREAMS FROM MY FATHER, THE AUDACITY OF HOPE 4 BOOKS COLLECTION SET (100%)",Peoples Services,LAC - Education,A44280,
http://opendatacommunities.org/id/london-borough-council/sutton,London Borough of Sutton,28/04/2022,10008360,8.93, ROYAL MAIL GROUP LTD,SPLIT - POSTAGE SERVICE: ROYAL MAIL 1ST CLASS X3 ITEMS (50%),Peoples Services,LAC - Education,A44280,
http://opendatacommunities.org/id/london-borough-council/sutton,London Borough of Sutton,28/04/2022,10008360,8.92, ROYAL MAIL GROUP LTD,SPLIT - POSTAGE SERVICE: ROYAL MAIL 1ST CLASS X3 ITEMS (50%),Peoples Services,LAC - Education,A44280,
http://opendatacommunities.org/id/london-borough-council/sutton,London Borough of Sutton,24/05/2022,10008360,19.16, AMAZON.CO.UK 253BB0R54,SPLIT - RUMMIKUB WORD GAME (100%),Peoples Services,LAC - Education,A44280,
http://opendatacommunities.org/id/london-borough-council/sutton,London Borough of Sutton,22/05/2022,10008360,6.29, AMAZON.CO.UK 2519Z3D54,SPLIT - NEEDLE (33.49%),Peoples Services,LAC - Education,A44280,
